[Event "German Rapid Championship 2022"]
[Site "Goettingen"]
[Date "2022.09.25"]
[Round "6.12"]
[White "Woelk, Tom-Frederic"]
[Black "Albert, Markus"]
[Result "1-0"]
[ECO "C63"]
[WhiteElo "2289"]
[BlackElo "2129"]
[Annotator "TA"]
[PlyCount "97"]
[EventDate "2022.09.24"]
[EventType "swiss"]
[EventCountry "GER"]
[SourceTitle "playchess.com"]
[Source "ChessBase"]
[SourceQuality "1"]
[TimeControl "900+10"]

{[%evp 13,97,26,45,0,12,0,12,5,0,-34,17,10,15,15,8,-85,26,-6,0,0,22,28,26,20,18,16,7,-8,0,-5,61,53,297,299,299,289,298,296,374,370,562,381,370,383,502,497,481,462,602,452,466,430,454,398,1028,963,916,689,662,652,636,535,535,428,535,484,523,506,527,534,513,464,446,366,454,409,651,577,1207,1202,29968,29970,29979,29980,29979,29980]} 1. e4 {[%emt 0:00:11]} Nc6 {[%emt 0:00:21]} 2. Nf3 {[%emt 0:00:41]} e5 {[%emt 0:00:08]} 3. Bb5 {[%emt 0:00:02]} f5 {[%emt 0:00:23]} 4. d3 {[%emt 0:00:04]} fxe4 {[%emt 0:00:18]} 5. dxe4 {[%emt 0:00:01]} Nf6 {[%emt 0:00:01]} 6. O-O {[%emt 0:00:54]} d6 {[%emt 0:00:09]} 7. Nc3 {[%emt 0:00:08]} Be7 {[%emt 0:00:04]} 8. a4 {[%emt 0:00:19] 8.Bc4 gains popularity. C63: Ruy Lopez: Schliemann/Jaenisch Defence.} O-O {[%emt 0:00:12]} 9. Bc4+ {[%emt 0:00:33]} Kh8 {[%emt 0:00:03]} 10. Ng5 {[%emt 0:00:09] aiming for Nf7+. The position is equal.} Qe8 {[%emt 0:00:11] Prevents Nf7+.} 11. Ne6 {[%emt 0:00:11]} Bxe6 {[%emt 0:00:27]} (11... Qf7 $15 12. Nxc7 (12. Nxf8 Qxc4 13. Nxh7 Kxh7 $17) 12... Qxc4 13. Nxa8 Nb4) 12. Bxe6 $11 {[%emt 0:00:01]} Nd4 {[%emt 0:00:11] [#]} 13. Bh3 $146 {[%emt 0:00:48]} ({Predecessor:} 13. Ba2 Qg6 14. Be3 Nxe4 15. Bxd4 exd4 16. Qxd4 Ng5 17. f4 Nf7 18. Nd5 Bd8 19. Rae1 {0-1 (37) Svidler,P (2723)-Ponkratov,P (2628) Chess.com INT 2020}) 13... Qg6 {[%emt 0:00:37]} 14. f3 {[%emt 0:00:31]} (14. Qd3 $11) 14... c6 {[%emt 0:00:27]} (14... d5 $17 {[%cal Rd5e4]} 15. Be3 dxe4 16. Bxd4 Rad8) 15. Ne2 {[%emt 0:03:00]} Nxe2+ {[%emt 0:04:52]} 16. Qxe2 {[%emt 0:00:03]} Rae8 {[%emt 0:00:04]} 17. Be3 {[%emt 0:02:04]} a6 $1 {[%emt 0:02:37]} 18. c4 {[%emt 0:02:38]} d5 {[%emt 0:00:41]} 19. cxd5 {[%emt 0:00:29]} cxd5 {[%emt 0:00:03]} 20. exd5 {[%emt 0:00:35]} Nxd5 {[%emt 0:00:11]} 21. Kh1 {[%emt 0:00:45]} Nf4 {[%emt 0:04:09]} ({Black should try} 21... e4 $11) 22. Bxf4 $14 {[%emt 0:00:03]} exf4 {[%emt 0:00:01] This move loses the game for Black.} ({Better is} 22... Rxf4 $14 23. Qxe5 Bg5) 23. Bd7 $18 {[%emt 0:00:09]} Bh4 {[%emt 0:00:16] Prevents Rfe1.} 24. Bxe8 {[%emt 0:00:03]} Rxe8 {[%emt 0:00:01]} 25. Qc4 {[%emt 0:00:25]} Qh6 {[%emt 0:00:38]} 26. Qf7 {[%emt 0:00:21][%cal Rf7e8] [#]} Rg8 {[%emt 0:00:37]} (26... Qg6 $142 27. Qxf4 Bf6) 27. Rad1 {[%emt 0:00:26]} Bg3 {[%emt 0:00:08][%csl Gg3][%cal Rh6h2]} 28. h3 {[%emt 0:00:02]} Qb6 {[%emt 0:00:38]} 29. b3 {[%emt 0:00:11]} Bh4 {[%emt 0:00:23]} 30. Qxf4 {[%emt 0:01:43]} Bf6 {[%emt 0:00:02]} 31. Qc4 {[%emt 0:00:04]} h6 {[%emt 0:00:14]} 32. Rde1 {[%emt 0:00:32][%cal Bd1e1,Be1e2,Be2e8][%mdl 32]} Rd8 {[%emt 0:00:19]} 33. Re2 {[%emt 0:00:36]} Rd4 $2 {[%emt 0:00:51]} (33... Qd4 34. Qf7 Qd7) 34. Re8+ {[%emt 0:00:30]} Kh7 {[%emt 0:00:01]} 35. Qc2+ {[%emt 0:00:00]} g6 {[%emt 0:00:03]} 36. Rfe1 {[%emt 0:00:29] [#] Black must now prevent R1e6.} Rd7 {[%emt 0:00:28]} 37. R8e6 {[%emt 0:00:22]} Qd4 {[%emt 0:00:01]} 38. Qe4 {[%emt 0:00:15] And now Qxd4 would win.} Qc3 {[%emt 0:00:07]} 39. Re8 {[%emt 0:00:11] Hoping for Qe6.} Rg7 {[%emt 0:00:32]} 40. Qd5 {[%emt 0:00:29]} Bh4 {[%emt 0:00:07]} 41. Rd1 {[%emt 0:00:13]} h5 {[%emt 0:00:09]} 42. Re4 {[%emt 0:00:08]} Bg3 {[%emt 0:00:04]} 43. Qd3 {[%emt 0:00:18]} Qf6 {[%emt 0:00:11]} 44. f4 {[%emt 0:00:04]} Bf2 {[%emt 0:00:19]} (44... Qf5 $142 45. Qe3 h4) 45. Qe2 {[%emt 0:00:13]} Ba7 {[%emt 0:00:04]} 46. Rf1 {[%emt 0:00:04]} Rf7 {[%emt 0:00:08]} 47. f5 {[%emt 0:00:02] White mates.} Qg7 {[%emt 0:00:17]} 48. fxg6+ {[%emt 0:00:06]} Qxg6 {[%emt 0:00:01]} 49. Rxf7+ {[%emt 0:00:02] Weighted Error Value: White=0.52/Black=0.45} 1-0

[Event "German Rapid Championship 2022"]
[Site "Goettingen"]
[Date "2022.09.25"]
[Round "6.13"]
[White "Kersten, Uwe"]
[Black "Becker, Thomas"]
[Result "1/2-1/2"]
[ECO "C41"]
[WhiteElo "2261"]
[BlackElo "2124"]
[Annotator "TA"]
[PlyCount "75"]
[EventDate "2022.09.24"]
[EventType "swiss"]
[EventCountry "GER"]
[SourceTitle "playchess.com"]
[Source "ChessBase"]
[SourceQuality "1"]
[TimeControl "900+10"]

{[%evp 16,75,52,56,58,54,58,-4,0,0,0,0,22,22,26,18,27,16,21,21,22,15,32,32,31,37,29,0,3,7,6,0,7,0,0,0,69,79,69,89,87,85,64,-70,-78,-264,-237,-222,-115,-237,-235,-378,0,-18,0,-372,-319,-569,-561,-555,-533,-1309]} 1. e4 {[%emt 0:00:02]} e5 {[%emt 0:00:47]} 2. Nf3 {[%emt 0:00:11]} d6 {[%emt 0:00:02]} 3. d4 {[%emt 0:00:03]} exd4 {[%emt 0:00:02]} 4. Nxd4 {[%emt 0:00:02]} Nf6 {[%emt 0:00:02]} 5. Nc3 {[%emt 0:00:02]} Be7 {[%emt 0:00:01]} 6. Bf4 {[%emt 0:00:24]} O-O {[%emt 0:00:04]} 7. Qd2 {[%emt 0:00:02]} Nc6 {[%emt 0:00:01]} 8. O-O-O {[%emt 0:00:14]} Nxd4 {[%emt 0:00:03]} 9. Qxd4 {[%emt 0:00:02]} a6 {[%emt 0:00:01] C41: Philidor Defence.} 10. e5 {[%emt 0:01:56]} dxe5 {[%emt 0:00:02]} 11. Qxd8 {[%emt 0:02:00]} ({White should try} 11. Qxe5 $14 Bd6 12. Qd4) 11... Bxd8 {[%emt 0:03:35] The position is equal.} 12. Bxe5 {[%emt 0:00:04]} Re8 {[%emt 0:00:22] [#]} 13. Be2 $146 {[%emt 0:05:03]} ({Predecessor:} 13. f3 b5 14. Bg3 Bb7 15. Bd3 c5 16. Rhe1 Ba5 17. Rxe8+ Rxe8 18. Bh4 c4 19. Bf5 {0-1 (71) Lujan,C (2379)-Bacallao Alonso,Y (2580) Mar del Plata 2012}) 13... Rxe5 {[%emt 0:05:40]} 14. Rxd8+ {[%emt 0:00:02]} Re8 {[%emt 0:00:01]} 15. Rxe8+ {[%emt 0:00:24]} Nxe8 {[%emt 0:00:02]} 16. Bf3 {[%emt 0:00:56]} Rb8 {[%emt 0:00:41]} 17. Rd1 {[%emt 0:00:32] Strongly threatening Rd8.} Be6 {[%emt 0:00:09]} 18. Ne4 {[%emt 0:00:19]} b6 {[%emt 0:01:29] Against Nc5} 19. Ng5 {[%emt 0:00:03]} Nd6 {[%emt 0:00:37]} 20. Nxe6 {[%emt 0:00:49]} fxe6 $14 {[%emt 0:00:03][%mdl 4096] Endgame KRB-KRN} 21. Bc6 {[%emt 0:00:51]} Rf8 {[%emt 0:00:16]} 22. f3 {[%emt 0:00:31][%cal Bf2f3,Bf3f4,Bf4e5][%mdl 32]} Rf4 {[%emt 0:00:11]} 23. b3 {[%emt 0:00:32]} Kf7 {[%emt 0:00:06]} 24. g3 {[%emt 0:00:13]} Rf5 {[%emt 0:00:05]} 25. f4 {[%emt 0:00:07]} e5 {[%emt 0:02:18]} (25... h5 $11) 26. Bd7 {[%emt 0:00:18] White is more active.} Rh5 {[%emt 0:00:04]} 27. Bg4 {[%emt 0:00:30]} Rxh2 {[%emt 0:00:11]} 28. fxe5 {[%emt 0:00:02]} Ne4 {[%emt 0:00:18]} 29. Bf5 {[%emt 0:00:45]} (29. Rd7+ $14 Kg6 30. Bf3 (30. Rxc7 Nxg3 31. e6 Rh1+ 32. Kd2 Ne4+ 33. Ke2 Ng5 $16) 30... Nxg3 31. e6) 29... Nxg3 $15 {[%emt 0:00:20]} 30. Rd7+ $2 {[%emt 0:00:17]} (30. Bc8 $17) 30... Ke8 $19 {[%emt 0:00:11]} 31. Be6 {[%emt 0:00:30]} Rh6 {[%emt 0:00:17]} (31... Ne2+ $1 $19 32. Kd1 Nf4) 32. Bg4 {[%emt 0:00:41]} (32. Rxg7 $17 {was worth a try.} Rxe6 33. Rxg3) 32... Rg6 $1 {[%emt 0:01:20]} 33. Bh3 {[%emt 0:00:02] [#]} (33. Rd4 $142) 33... Rh6 $2 {[%emt 0:00:02]} (33... Ne2+ $1 $19 34. Kd2 Nf4) 34. Bg4 $11 {[%emt 0:00:14]} Rg6 $2 {[%emt 0:00:02][%mdl 8192]} (34... Rh1+ $11 35. Kb2 h5) 35. Bh3 $19 {[%emt 0:00:04] [#]} Ne2+ $1 ({And not} 35... Rh6 36. Bg4 $17) 36. Kb2 $2 (36. Kd2 Nf4 37. Bf5) 36... Nf4 37. Bf5 {Threatens to win with Rd4.} Rg5 38. Rd6 {[%mdl 32768] Weighted Error Value: White=0.44/Black=0.25 (precise) . An unexpected result.} 1/2-1/2

[Event "German Rapid Championship 2022"]
[Site "Goettingen"]
[Date "2022.09.25"]
[Round "7.1"]
[White "Fridman, Daniel"]
[Black "Bluebaum, Matthias"]
[Result "1/2-1/2"]
[ECO "A06"]
[WhiteElo "2607"]
[BlackElo "2647"]
[Annotator "TA"]
[PlyCount "77"]
[EventDate "2022.09.24"]
[EventType "swiss"]
[EventCountry "GER"]
[SourceTitle "playchess.com"]
[Source "ChessBase"]
[SourceQuality "1"]
[TimeControl "900+10"]

{[%evp 19,77,0,5,0,4,0,0,0,0,0,23,16,10,0,0,0,0,0,9,-25,-5,-18,-14,-40,-10,-25,-20,-27,-25,-31,-26,-31,-13,-35,-49,-116,-116,-111,-106,-100,-81,-79,-80,-79,-49,-58,12,13,8,0,0,0,0,0,0,0,0,0,0,0]} 1. Nf3 {[%emt 0:00:03]} d5 {[%emt 0:00:02]} 2. g3 {[%emt 0:00:01]} Nf6 {[%emt 0:00:33]} 3. Bg2 {[%emt 0:00:02]} c5 {[%emt 0:00:01]} 4. O-O {[%emt 0:00:10]} g6 {[%emt 0:00:02]} 5. d4 {[%emt 0:01:13]} cxd4 {[%emt 0:00:03]} 6. Nxd4 {[%emt 0:00:03]} Bg7 {[%emt 0:00:14]} 7. c4 {[%emt 0:00:57]} O-O {[%emt 0:00:16]} 8. cxd5 {[%emt 0:00:52]} Nxd5 {[%emt 0:00:03][%cal Bf6d5,Bd5b4,Bb4d3,Bd3c1][%mdl 32]} 9. Nb5 {[%emt 0:00:20]} Be6 {[%emt 0:00:04]} 10. Nd4 {[%emt 0:00:01]} Bc8 {[%emt 0:00:01]} 11. Nb3 {[%emt 0:01:46] D73: Fianchetto Grünfeld: 5 Nf3 .} e6 {[%emt 0:01:54]} 12. e4 {[%emt 0:01:22]} Nb4 {[%emt 0:00:13] Strongly threatening ...Qxd1.} 13. Nc3 {[%emt 0:00:02]} Nd3 {[%emt 0:01:42]} 14. Qe2 {[%emt 0:00:21] And now Be3 would win.} Nxc1 {[%emt 0:00:06]} 15. Raxc1 {[%emt 0:00:02]} Nc6 {[%emt 0:00:08]} 16. Rfd1 {[%emt 0:00:11]} Qe7 {[%emt 0:00:04]} 17. f4 {[%emt 0:00:07]} Bxc3 {[%emt 0:00:15]} 18. Rxc3 {[%emt 0:00:20] With the idea e5.} e5 $1 {[%emt 0:00:02] [#]} 19. Qf2 $146 {[%emt 0:01:22]} (19. f5 $5) ({Predecessor:} 19. f5 gxf5 20. Rf1 fxe4 21. Bxe4 f6 22. Qh5 Kh8 23. Rcf3 f5 24. Bxf5 Bxf5 25. Rxf5 Rxf5 26. Rxf5 Rf8 27. Kg2 Rxf5 28. Qxf5 {1-0 (58) Keymer,V (2672)-Shimanov,A (2581) Chess.com INT 2022}) 19... Bg4 {[%emt 0:01:12]} 20. Re1 {[%emt 0:00:31]} Be6 {[%emt 0:01:56]} 21. Nc5 {[%emt 0:00:09]} Rad8 {[%emt 0:00:56]} 22. a3 {[%emt 0:02:25]} Bc8 {[%emt 0:00:20]} 23. Bf1 {[%emt 0:00:21]} b6 {[%emt 0:01:20]} 24. Nd3 {[%emt 0:00:16]} Bb7 {[%emt 0:00:01]} 25. Rec1 {[%emt 0:00:24]} Rd6 {[%emt 0:01:07]} 26. Bg2 {[%emt 0:03:14]} (26. fxe5 {seems wilder.} Nxe5 27. Rc7 Rd7 28. Rxd7 Nxd7 29. Rc7) 26... Rfd8 {[%emt 0:00:16][%cal Bf8d8,Bd8d7,Bd7d2][%mdl 32]} 27. Nxe5 {[%emt 0:00:13]} ({White should try} 27. Qe3 $15) 27... Nxe5 $17 {[%emt 0:00:22]} 28. fxe5 {[%emt 0:00:01]} Rd1+ {[%emt 0:00:05]} (28... Qxe5 {keeps more tension.} 29. Rc7 Rd1+ 30. Bf1 R1d7) 29. Bf1 {[%emt 0:00:09][%cal Bg2f1,Bf1c4,Bc4f7][%mdl 32]} Rxc1 {[%emt 0:02:50]} 30. Rxc1 {[%emt 0:00:02][%cal Bc3c1,Bc1f1,Bf1f4][%mdl 32]} Qxe5 {[%emt 0:00:02]} 31. Bc4 {[%emt 0:01:14]} Rd7 {[%emt 0:00:44]} (31... Qxe4 $2 {is a self mate.} 32. Qxf7+ Kh8 33. Qf6#) 32. Rf1 $1 {[%emt 0:00:02][%cal Rc4f7]} Qxe4 {[%emt 0:01:32]} (32... Qe7 $15) 33. Bxf7+ $11 {[%emt 0:00:03] The position is equal.} Kg7 $132 {[%emt 0:00:01][%csl Gb7][%cal Re4h1][%mdl 2048] [#] Black puts up resistance} 34. Qf6+ {[%emt 0:00:04]} Kh6 {[%emt 0:00:01][%csl Gb7][%cal Re4g2]} 35. Qf4+ {[%emt 0:00:07]} Qxf4 {[%emt 0:00:03]} 36. Rxf4 {[%emt 0:00:01]} Rd2 {[%emt 0:00:40]} 37. Rf2 {[%emt 0:00:02] Against Rg2+} Rd1+ {[%emt 0:00:07]} 38. Rf1 {[%emt 0:00:02]} Rd2 {[%emt 0:00:01] [#] ( -> ...Rg2+)} 39. Rf2 {[%emt 0:00:01] Prevents Rg2+.  Weighted Error Value: White=0.09 (flawless) /Black=0.09 (flawless)} 1/2-1/2

[Event "German Rapid Championship 2022"]
[Site "Goettingen"]
[Date "2022.09.25"]
[Round "7.2"]
[White "Poetsch, Hagen"]
[Black "Lubbe, Nikolas"]
[Result "1-0"]
[ECO "B33"]
[WhiteElo "2491"]
[BlackElo "2479"]
[Annotator "RC"]
[PlyCount "79"]
[EventDate "2022.09.24"]
[EventType "swiss"]
[EventCountry "GER"]
[SourceTitle "playchess.com"]
[Source "ChessBase"]
[SourceQuality "1"]
[TimeControl "900+10"]

1. e4 {[%emt 0:00:02]} c5 {[%emt 0:00:03]} 2. Nf3 {[%emt 0:00:02]} e6 {[%emt 0:00:05]} 3. d4 {[%emt 0:00:02]} cxd4 {[%emt 0:00:02]} 4. Nxd4 {[%emt 0:00:01]} Nf6 {[%emt 0:00:03]} 5. Nc3 {[%emt 0:00:02]} Nc6 {[%emt 0:00:02]} 6. Ndb5 {[%emt 0:00:12]} d6 {[%emt 0:00:04]} 7. Bf4 {[%emt 0:00:03]} e5 {[%emt 0:00:03]} 8. Bg5 {[%emt 0:00:01]} a6 {[%emt 0:00:02]} 9. Na3 {[%emt 0:00:02]} b5 {[%emt 0:00:10]} 10. Bxf6 {[%emt 0:00:02]} gxf6 {[%emt 0:00:02]} 11. Nd5 {[%emt 0:00:02]} Bg7 {[%emt 0:00:05]} 12. c3 {[%emt 0:00:07]} Ne7 {[%emt 0:00:21]} 13. Nxe7 {[%emt 0:00:04]} Qxe7 {[%emt 0:00:03]} 14. Nc2 {[%emt 0:00:02]} f5 {[%emt 0:00:58]} 15. exf5 {[%emt 0:00:03]} O-O {[%emt 0:00:11]} 16. Ne3 {[%emt 0:00:16]} e4 {[%emt 0:01:09]} 17. Be2 {[%emt 0:00:58]} Qe5 {[%emt 0:03:35]} 18. Qd5 {[%emt 0:02:28]} Rb8 {[%emt 0:00:25]} 19. O-O {[%emt 0:01:53]} b4 {[%emt 0:00:33]} 20. Rab1 {[%emt 0:01:10]} Re8 {[%emt 0:01:03]} 21. Bc4 {[%emt 0:01:34]} Qf6 {[%emt 0:04:00]} 22. cxb4 {[%emt 0:00:41]} Rxb4 {[%emt 0:01:33]} 23. Rfd1 {[%emt 0:01:35]} Rb6 {[%emt 0:00:49]} 24. b4 {[%emt 0:01:47]} h5 {[%emt 0:01:06]} 25. Qa5 {[%emt 0:00:11]} Rc6 {[%emt 0:00:37]} 26. Qa4 {[%emt 0:01:44]} Bd7 {[%emt 0:00:50]} 27. Bd5 {[%emt 0:00:04]} Rc7 {[%emt 0:00:40]} 28. Qxa6 {[%emt 0:00:27]} Bxf5 {[%emt 0:00:10]} 29. Qa5 {[%emt 0:00:32]} Rce7 {[%emt 0:00:35]} 30. Bc6 {[%emt 0:00:23]} Re5 {[%emt 0:00:21]} 31. Nd5 {[%emt 0:01:49]} Qg5 {[%emt 0:00:01]} 32. h4 {[%emt 0:00:34]} Qxh4 {[%emt 0:00:14]} 33. Bxe8 {[%emt 0:00:10]} Rxe8 {[%emt 0:00:19]} 34. Ne7+ {[%emt 0:00:26]} Rxe7 {[%emt 0:00:02]} 35. Qxf5 {[%emt 0:00:02]} e3 {[%emt 0:00:04]} 36. Rxd6 {[%emt 0:00:39]} Bd4 {[%emt 0:00:19]} 37. g3 {[%emt 0:00:27]} exf2+ {[%emt 0:00:04]} 38. Kg2 {[%emt 0:00:02]} Re1 {[%emt 0:00:06]} 39. gxh4 {[%emt 0:00:15]} Rg1+ {[%emt 0:00:17]} 40. Kh3 {[%emt 0:00:06]} 1-0

[Event "German Rapid Championship 2022"]
[Site "Goettingen"]
[Date "2022.09.25"]
[Round "7.3"]
[White "Svane, Rasmus"]
[Black "Laux, Dominik"]
[Result "1-0"]
[ECO "A06"]
[WhiteElo "2615"]
[BlackElo "2248"]
[Annotator "TA"]
[PlyCount "109"]
[EventDate "2022.09.24"]
[EventType "swiss"]
[EventCountry "GER"]
[SourceTitle "playchess.com"]
[Source "ChessBase"]
[SourceQuality "1"]
[TimeControl "900+10"]

{[%evp 11,109,9,9,21,16,17,15,11,42,25,42,42,41,22,37,27,39,18,47,36,37,31,17,26,61,53,152,160,187,91,81,71,133,89,103,0,183,102,105,122,123,75,69,0,0,0,1,0,99,53,67,55,74,72,77,71,82,64,185,125,864,849,849,828,825,0,624,258,270,270,270,270,400,397,373,376,334,290,537,526,762,235,248,195,204,197,254,216,230,215,216,207,287,202,2252,2480,1592,1257,991,837]} 1. Nf3 {[%emt 0:00:03]} d5 {[%emt 0:00:01]} 2. g3 {[%emt 0:00:02]} Nf6 {[%emt 0:00:02]} 3. Bg2 {[%emt 0:00:03]} Bf5 {[%emt 0:00:09]} 4. c4 {[%emt 0:00:14]} c6 {[%emt 0:00:12]} 5. O-O {[%emt 0:00:09]} e6 {[%emt 0:00:08]} 6. Qb3 {[%emt 0:00:07]} Qb6 {[%emt 0:00:18]} 7. d3 {[%emt 0:00:03] A11: English Opening: 1...c6.} Nbd7 {[%emt 0:01:08]} 8. cxd5 {[%emt 0:00:03]} exd5 {[%emt 0:01:19]} 9. Qc2 {[%emt 0:00:04] The position is equal.} Be7 {[%emt 0:00:46]} (9... Qc5 $5 {[%cal Rc5c2]} 10. Qa4 Qb4 $11) 10. Nc3 {[%emt 0:00:02]} O-O {[%emt 0:00:44]} 11. e4 {[%emt 0:00:02]} Bg6 {[%emt 0:01:12]} 12. Be3 {[%emt 0:00:03]} Qa6 {[%emt 0:00:16]} 13. Nh4 {[%emt 0:00:32]} dxe4 {[%emt 0:01:23]} 14. dxe4 {[%emt 0:00:05]} Rfe8 {[%emt 0:01:11] [#]} 15. Rad1 $146 {[%emt 0:00:22]} ({Predecessor:} 15. Nxg6 hxg6 16. Rfd1 Rad8 17. h3 Bc5 18. Bf4 Nf8 19. Rxd8 Rxd8 20. e5 Nh5 21. Bg5 {1-0 (68) Naroditsky,D (2619)-Brown,M (2506) Chess.com INT 2018}) 15... Bc5 {[%emt 0:00:34]} 16. Rfe1 {[%emt 0:06:18][%cal Bf1e1,Be1e3,Be3d3,Bd3d4][%mdl 32]} Bxe3 {[%emt 0:02:22]} 17. Rxe3 {[%emt 0:00:01]} Qc4 {[%emt 0:01:45]} 18. Red3 {[%emt 0:01:20]} Ne5 {[%emt 0:02:37]} (18... Nc5 $14 19. Rd4 Qa6) 19. Rd4 $16 {[%emt 0:00:06]} Qc5 {[%emt 0:00:16] [#]} 20. h3 {[%emt 0:00:35]} (20. f4 $1 $18 {and White stays clearly on top.}) 20... b5 {[%emt 0:00:31]} 21. Qc1 {[%emt 0:03:05][%cal Oc3d5]} h6 {[%emt 0:01:12]} (21... Qb6 $142) 22. b4 {[%emt 0:02:21]} Qb6 {[%emt 0:00:02]} 23. Kh2 {[%emt 0:00:40]} (23. a4 $16) 23... Nc4 $2 {[%emt 0:00:32]} (23... Rad8 $11 {and Black has nothing to worry.} 24. Rxd8 Nfg4+ 25. Kg1 Qxf2+ 26. Kh1 Qxg3 27. Rxe8+ Kh7 28. Rh8+ (28. hxg4 Nxg4 29. Nf3 Nf2+ 30. Kg1 Nh3+ 31. Kh1 Nf2+ 32. Kg1 Nh3+ 33. Kh1 Nf2+ $11) 28... Kxh8 29. Nxg6+ fxg6 30. hxg4 Nxg4) 24. f4 {[%emt 0:00:23]} ({White should try} 24. Nxg6 $18 fxg6 25. f4) 24... Rad8 {[%emt 0:00:19]} 25. Rxd8 {[%emt 0:00:02]} Rxd8 {[%emt 0:00:00]} 26. e5 {[%emt 0:00:22]} (26. Rxd8+ $142 Qxd8 27. Nxg6 fxg6 28. e5) 26... Rxd1 {[%emt 0:00:11]} 27. Qxd1 {[%emt 0:00:03]} (27. Nxd1 $14 Nd5 28. Nxg6 fxg6 29. Qb1) 27... Ne3 $11 {[%emt 0:00:05]} 28. Qf3 {[%emt 0:01:52]} Nfd5 {[%emt 0:00:23]} 29. Nxd5 {[%emt 0:00:06]} (29. f5 {looks sharper.} Bh7 30. e6 fxe6 31. fxe6 Nf6 32. e7) 29... Nxd5 {[%emt 0:00:01]} (29... cxd5 $11 30. f5 Bh7) 30. f5 {[%emt 0:00:38]} ({Better is} 30. e6 $16) 30... Bh7 $14 {[%emt 0:00:01]} 31. e6 {[%emt 0:00:06]} Qc7 {[%emt 0:00:26]} 32. Qe2 {[%emt 0:00:11] Black must now prevent Bxd5. White stays focused until the end.} Kf8 {[%emt 0:00:10]} 33. exf7 {[%emt 0:00:15] White is more active.} Qxf7 {[%emt 0:00:08]} 34. Qe5 {[%emt 0:00:05] Threatens to win with Qb8+.} Qd7 {[%emt 0:00:01] [#]} (34... Qc7 $14 35. Qxc7 Nxc7) 35. a3 $40 {[%emt 0:00:11][%mdl 128] White wants a kill.} ({Worse is} 35. Bxd5 Qxd5 36. Qxd5 (36. Qb8+ Ke7 $11) 36... cxd5 $14) (35. Qb8+ $1 $18 Qe8 36. Qxa7) 35... Bg8 $2 {[%emt 0:00:24][%mdl 8192]} (35... a6 $16 36. g4 Qc7 37. Qxc7 Nxc7 38. Bxc6 Ke7) 36. Ng6+ $18 {[%emt 0:00:02]} Kf7 {[%emt 0:00:00]} 37. Nh8+ {[%emt 0:00:11]} Kf8 {[%emt 0:00:01]} 38. Ng6+ {[%emt 0:00:02]} Kf7 {[%emt 0:00:01]} 39. Qe4 {[%emt 0:00:24]} (39. a4 $142 {Strongly threatening axb5.} Ne7 40. axb5 cxb5 41. Qb8 Nxg6 42. fxg6+ Kxg6 43. Qxg8) 39... Qd6 {[%emt 0:00:23]} 40. Qd4 {[%emt 0:00:02]} Bh7 {[%emt 0:00:13]} 41. Qxa7+ {[%emt 0:00:27]} Kf6 {[%emt 0:00:01]} (41... Nc7 {was called for.} 42. a4 bxa4 43. Bxc6 (43. Qxa4 Bxg6 44. fxg6+ Kxg6 $16) 43... Bxg6 44. fxg6+ Kxg6 45. Qxa4 Qe5) 42. Qd4+ {[%emt 0:00:03]} Kf7 {[%emt 0:00:15]} 43. Ne5+ {[%emt 0:00:05]} Kf8 {[%emt 0:00:05]} 44. g4 {[%emt 0:00:16]} ({Weaker is} 44. Nxc6 Qxc6 45. Bxd5 (45. Qxd5 Qxd5 46. Bxd5 Bxf5 $16) 45... Qc2+ 46. Bg2 Bxf5 47. Qd8+ Kf7 48. Qd5+ Kf6 49. Qxb5 Be4 50. Qf1+ Ke7 $18) 44... g6 $2 {[%emt 0:00:14]} (44... Bg8 45. Kg1 Bf7) 45. fxg6 {[%emt 0:00:11]} Bxg6 {[%emt 0:00:03]} 46. Kg1 $2 {[%emt 0:00:05]} (46. Qc5 Qxc5 47. Nxg6+ Kg7 48. bxc5) 46... Be8 {[%emt 0:00:08]} 47. Nd3 {[%emt 0:00:12]} Kg8 {[%emt 0:00:10]} 48. Qe5 {[%emt 0:00:06] Prevents Qg3.} Qd7 {[%emt 0:00:23]} (48... Qxe5 $142 49. Nxe5 Ne7) 49. Nc5 {[%emt 0:00:06]} Qf7 {[%emt 0:00:01]} 50. Ne4 {[%emt 0:00:11]} Qa7+ {[%emt 0:00:27]} 51. Kh2 {[%emt 0:00:08]} Bf7 {[%emt 0:00:04]} 52. Nd6 {[%emt 0:00:23]} Qxa3 $2 {[%emt 0:00:17]} (52... Qe7 53. Nxf7 Qxf7) 53. Nf5 {[%emt 0:00:02][%csl Gf5][%cal Re5g7] White is clearly winning.} Qc3 {[%emt 0:00:10]} 54. Nxh6+ {[%emt 0:00:02]} Kf8 {[%emt 0:00:05]} 55. Nxf7 {[%emt 0:00:02] Weighted Error Value: White=0.47/Black=0.39} 1-0